bitfinex/quotes_SOLUSD_20250818
["timestamp","ask_amount","ask_price","bid_price","bid_amount"]
[1755524412181,14.20515437,183.06,183.02,0.69]
[1755524412369,0.06,183.07,183.03,0.69]
[1755524412370,3.724359,183.07,183.03,0.69]
[1755524412547,3.724359,183.07,183.03,14.20515437]
[1755524412752,3.724359,183.07,183.04,0.69]
[1755524413559,0.06,183.07,183.05,5.46298825]
[1755524413756,3.724359,183.07,183.05,6.15298825]
[1755524413983,0.06,183.07,183.05,6.15298825]
[1755524414677,0.06,183.07,183.05,5.46298825]
[1755524414975,0.06,183.07,183.06,14.89515437]
[1755524415278,3.72629507,183.11,183.06,0.69]
[1755524415448,0.06,183.11,183.07,14.89515437]
[1755524415653,3.72629507,183.11,183.09,5.46179474]
[1755524415852,0.06,183.11,183.09,5.46179474]
[1755524416475,14.87515437,183.1,183.09,5.46179474]
[1755524416681,17.87144944,183.1,183.09,5.46179474]
[1755524417189,14.20515437,183.1,183.09,5.46179474]
[1755524417569,18.54144944,183.1,183.07,13.65537951]
[1755524417887,14.87515437,183.09,183.06,5.46268982]
[1755524418063,40.87515437,183.1,183.06,19.11941439]
[1755524418262,18.54190024,183.09,183.06,19.11941439]
[1755524418883,14.20515437,183.07,183.06,5.46268982]
[1755524419086,14.87515437,183.07,183.06,5.46268982]
[1755524419885,18.54190024,183.07,183.01,5.49418228]
[1755524420095,14.20515437,183.04,183.01,5.49418228]
[1755524420586,26.0,183.06,183.01,19.82463799]
[1755524420788,26.0,183.06,183.02,0.67]
[1755524420960,40.20515437,183.08,183.03,14.20515437]
[1755524421286,14.20515437,183.07,183.02,14.20515437]
[1755524421585,14.20515437,183.05,183.01,19.15463799]
[1755524421794,14.20515437,183.05,183.01,19.82463799]
[1755524422884,14.20515437,183.06,183.03,0.03]
[1755524423109,17.87418175,183.06,183.03,0.03]
[1755524423276,4.33902738,183.06,183.03,0.03]
[1755524423661,14.20515437,183.05,183.03,0.03]
[1755524423857,14.20515437,183.04,183.03,0.03]
[1755524424058,14.87515437,183.04,183.03,0.03]
[1755524424786,18.54418175,183.04,183.03,0.03]
[1755524424968,14.87515437,183.04,183.03,0.03]
[1755524425378,44.54418175,183.04,183.03,0.03]
[1755524425770,44.54418175,183.04,183.03,0.7]
[1755524425771,3.66902738,183.04,183.03,0.7]
[1755524425978,3.66902738,183.08,183.03,19.82254821]
[1755524426191,14.20515437,183.05,183.03,5.4935852]
[1755524426775,0.67,183.07,183.03,5.4935852]
[1755524426968,14.20515437,183.05,183.03,5.4935852]
[1755524427280,14.20515437,183.04,183.03,5.4935852]
[1755524427586,18.54899405,183.04,183.03,5.4935852]
[1755524428089,18.54899405,183.04,183.03,0.03]
[1755524428786,14.87515437,183.04,183.03,0.03]
[1755524428992,18.54899405,183.04,183.03,0.03]
[1755524429197,14.20515437,183.04,183.03,0.03]
[1755524429397,17.87899405,183.04,183.03,0.03]
[1755524429596,3.67383968,183.04,183.03,0.03]
[1755524429782,17.87899405,183.04,183.03,0.03]
[1755524430295,18.54899405,183.04,183.03,0.03]
[1755524431070,22.63411944,183.04,183.03,0.03]
[1755524431275,26.0,183.02,183.01,0.03]
[1755524431481,67.34130987,183.02,183.01,0.03]
[1755524431687,62.74411944,183.02,183.01,0.03]
[1755524433487,62.74224319,183.02,183.01,0.03]
[1755524433796,21.96216263,183.02,183.01,0.03]
[1755524434100,7.75700826,183.02,183.01,0.03]
[1755524434311,17.87899405,183.02,183.01,0.03]
[1755524434604,21.96136734,183.02,183.01,0.03]
[1755524435504,62.74136734,183.02,183.01,0.03]
[1755524436879,3.67383968,183.02,183.01,0.03]
[1755524437121,14.20515437,183.02,183.01,0.03]
[1755524437284,17.87899405,183.02,183.01,0.03]
[1755524437487,3.67383968,183.02,183.01,0.03]
[1755524437708,26.0,183.02,183.01,0.03]
[1755524437896,29.67383968,183.02,183.01,0.03]
[1755524438100,14.20515437,183.04,183.01,0.03]
[1755524438288,26.0,183.02,183.01,0.03]
[1755524440004,40.20515437,183.02,183.01,0.03]
[1755524440706,26.0,183.02,183.01,0.03]
[1755524441006,14.20515437,183.05,183.01,0.03]
[1755524441207,17.87764996,183.06,183.01,14.23515437]
[1755524442304,3.67249559,183.06,183.02,33.32874741]
[1755524442617,0.06,183.07,183.05,14.20515437]
[1755524442810,0.06,183.07,183.06,14.20515437]
[1755524443112,0.06,183.07,183.04,14.20515437]
[1755524443313,0.06,183.07,183.03,15.10621557]
[1755524443314,0.06,183.07,183.05,14.20515437]
[1755524444030,0.06,183.09,183.06,14.20515437]
[1755524444195,0.06,183.09,183.07,5.46239143]
[1755524444598,0.06,183.12,183.08,14.20515437]
[1755524444826,0.06,183.12,183.11,14.20515437]
[1755524445204,0.06,183.14,183.11,14.20515437]
[1755524445616,0.06,183.15,183.13,14.20515437]
[1755524446407,1e-08,183.15,183.14,19.66545796]
[1755524447021,1e-08,183.15,183.14,5.46030359]
[1755524448929,14.20515438,183.15,183.14,5.46030359]
[1755524449426,3.66152188,183.15,183.11,13.6524177]
[1755524449750,40.20515438,183.15,183.12,5.46089995]
[1755524450020,1e-08,183.15,183.14,29.31136994]
[1755524450407,1e-08,183.15,183.14,34.77167353]
[1755524450607,1e-08,183.15,183.14,5.46030359]
[1755524451213,14.20515438,183.15,183.14,5.46030359]
[1755524451814,14.20515438,183.15,183.09,25.2]
[1755524452017,14.20515437,183.11,183.09,5.46179474]
[1755524452432,26.0,183.12,183.09,5.46179474]
[1755524452729,14.20515437,183.1,183.09,5.46179474]
[1755524453217,26.0,183.13,183.09,5.46179474]
[1755524453625,14.20515437,183.1,183.09,5.46179474]
[1755524454705,14.20515437,183.1,183.05,13.65714532]
[1755524454910,14.20515437,183.08,183.05,13.65714532]
[1755524455105,40.74,183.11,183.05,13.65714532]
[1755524455307,14.20515437,183.08,183.05,13.65714532]
[1755524455831,14.20515437,183.07,183.05,13.65714532]
[1755524456010,14.20515437,183.07,183.04,5.46328671]
[1755524456212,14.20515437,183.06,183.04,5.46328671]
[1755524456836,14.20515437,183.07,183.03,5.4635852]
[1755524457035,14.20515437,183.04,183.03,5.4635852]
[1755524457706,14.20515437,183.04,183.02,5.46379828]
[1755524458031,14.20515437,183.03,183.02,5.46379828]
[1755524458423,14.20515437,183.03,183.01,5.49413228]
[1755524458716,14.20515437,183.02,183.01,0.03]
[1755524458919,54.94515437,183.02,183.01,0.03]
[1755524459113,62.67499611,183.02,183.01,0.03]
[1755524459311,66.97796966,183.02,183.01,0.03]
[1755524459741,62.67499611,183.02,183.01,0.03]
[1755524460333,62.67369348,183.02,183.01,0.03]
[1755524461140,26.22,183.0,182.99,0.03]
[1755524461437,44.08621601,183.0,182.99,0.03]
[1755524461662,62.3591186,183.0,182.98,0.03]
[1755524461806,58.60621601,182.99,182.97,0.03]
[1755524462010,21.93431292,182.98,182.96,0.03]
[1755524462212,17.86621601,182.97,182.96,0.03]
[1755524462610,14.20515437,182.97,182.96,0.03]
[1755524463649,26.0,182.99,182.96,0.03]
[1755524463818,54.94515437,182.97,182.96,0.03]
[1755524464424,14.20515437,182.97,182.96,0.03]
[1755524464619,0.22,183.0,182.96,0.03]
[1755524464939,40.20515437,182.98,182.96,0.03]
[1755524465317,26.0,182.98,182.96,0.03]
[1755524465514,40.20515437,182.98,182.96,0.03]
[1755524466129,26.0,182.98,182.96,0.03]
[1755524466536,14.20515437,182.97,182.96,0.03]
[1755524468144,40.20515437,182.98,182.96,0.03]
[1755524469043,14.20515437,182.97,182.96,0.03]
[1755524472034,80.94515437,182.97,182.96,0.03]
[1755524472420,43.85604327,182.97,182.96,0.03]
[1755524472614,84.61604327,182.97,182.96,0.03]
[1755524472820,26.0,182.97,182.96,0.03]
[1755524473018,40.20515437,182.97,182.96,0.03]
[1755524473242,81.00515437,182.97,182.96,0.03]
[1755524473524,84.65570646,182.97,182.96,0.03]
[1755524473720,40.26515437,182.97,182.96,0.03]
[1755524473926,14.26515437,182.97,182.96,0.03]
[1755524474250,0.06,182.97,182.96,0.03]
[1755524474421,14.26515437,182.97,182.96,0.03]
[1755524476660,0.06,182.97,182.96,0.03]
[1755524476944,26.06,182.97,182.96,0.03]
[1755524477148,0.06,182.97,182.96,0.03]
[1755524477372,26.06,182.97,182.96,0.03]
[1755524477523,40.26515437,182.97,182.96,0.03]
[1755524477721,81.00515437,182.97,182.96,0.03]
[1755524479337,84.65336313,182.97,182.96,0.03]
[1755524480760,88.70526674,182.97,182.96,0.03]
[1755524481872,84.65336313,182.97,182.96,0.03]
[1755524482242,99.7595787,182.97,182.96,0.03]
[1755524482546,15.10621557,182.96,182.94,0.03]
[1755524482762,58.99418747,182.95,182.94,0.03]
[1755524482967,62.64239623,182.95,182.94,0.03]
[1755524483274,58.59336313,182.95,182.94,0.03]
[1755524483777,3.64820876,182.95,182.94,0.03]
[1755524483982,54.94515437,182.95,182.94,0.03]
[1755524484282,40.74,182.95,182.94,0.03]
[1755524484455,14.20515437,182.95,182.94,0.03]
[1755524484981,26.0,182.95,182.94,0.03]
[1755524485289,40.20515437,182.95,182.94,0.03]
[1755524487180,43.84597374,182.95,182.94,0.03]
[1755524487550,58.95218931,182.95,182.94,0.03]
[1755524487966,15.10621557,182.94,182.93,0.03]
[1755524488153,73.69218931,182.94,182.93,0.03]
[1755524488651,70.05136994,182.94,182.93,0.03]
[1755524488851,70.05136994,182.94,182.9,0.03]
[1755524488852,26.0,182.91,182.9,0.03]
[1755524489057,80.94515437,182.91,182.9,0.03]
[1755524489287,84.58263255,182.91,182.88,0.03]
[1755524489581,26.0,182.87,182.84,0.03]
[1755524489792,84.58263255,182.87,182.84,0.03]
[1755524489954,80.94515437,182.87,182.84,0.03]
[1755524491171,83.79949987,182.87,182.84,0.03]
[1755524492473,69.5943455,182.87,182.84,0.03]
[1755524492686,2.8543455,182.87,182.84,0.03]
[1755524492871,14.20515437,182.9,182.84,14.23515437]
[1755524493059,14.20515437,182.9,182.85,14.20515437]
[1755524493060,26.0,182.88,182.85,14.20515437]
[1755524493496,14.20515437,182.89,182.84,0.03]
[1755524493680,14.20515437,182.87,182.84,0.03]
[1755524494290,54.94515437,182.87,182.84,0.03]
[1755524495574,58.59096413,182.87,182.84,0.03]
[1755524496604,44.38580976,182.87,182.84,0.03]
[1755524496772,58.59096413,182.87,182.84,0.03]
[1755524497173,54.94515437,182.87,182.84,0.03]
[1755524497404,58.59253416,182.87,182.84,0.03]
[1755524498386,62.64993298,182.87,182.84,0.03]
[1755524500379,67.19858126,182.87,182.84,0.03]
[1755524501393,26.0,182.85,182.84,0.03]
[1755524501578,88.64993298,182.85,182.84,0.03]
[1755524501779,103.75614855,182.85,182.84,0.03]
[1755524502099,117.96130292,182.85,182.83,0.03]
[1755524502278,26.478699,182.84,182.83,0.03]
[1755524502475,21.90993298,182.84,182.83,0.03]
[1755524502674,21.91525154,182.84,182.83,0.03]
[1755524504294,37.02146711,182.84,182.83,0.03]
[1755524504680,0.1,182.8,182.74,13.68033278]
[1755524504881,14.20515437,182.77,182.74,13.68033278]
[1755524506001,14.20515437,182.76,182.74,13.68033278]
[1755524506305,14.20515437,182.76,182.73,5.47255513]
[1755524506712,14.20515437,182.75,182.73,5.47255513]
[1755524507006,3.6531977,182.78,182.73,5.47255513]
[1755524507007,14.20515437,182.74,182.73,5.47255513]
[1755524507198,40.20515437,182.74,182.69,21.92878935]
[1755524507511,14.20515437,182.71,182.69,5.47375335]
[1755524507805,14.20515437,182.7,182.69,5.47375335]
[1755524508127,14.20515437,182.7,182.66,19.16128324]
[1755524508425,66.74,182.71,182.66,5.47465235]
[1755524508597,66.74,182.7,182.66,5.47465235]
[1755524508787,14.20515437,182.67,182.66,5.47465235]
[1755524509218,14.20515437,182.67,182.64,5.47525186]
[1755524509394,66.74,182.7,182.64,5.47525186]
[1755524509395,14.20515437,182.66,182.64,5.47525186]
[1755524509584,14.20515437,182.67,182.64,19.16338151]
[1755524509978,14.20515437,182.67,182.61,15.10621557]
[1755524510411,14.20515437,182.67,182.61,29.31136994]
[1755524510610,14.20515437,182.66,182.61,14.20515437]
[1755524510800,14.20515437,182.66,182.6,19.16757939]
[1755524511001,14.20515437,182.64,182.6,19.16757939]
[1755524511216,14.20515437,182.62,182.6,5.47645125]
[1755524511510,26.0,182.63,182.58,5.47705115]
[1755524511714,14.20515437,182.6,182.58,5.47705115]
[1755524511886,14.20515437,182.59,182.58,5.47705115]
[1755524512086,14.20515437,182.59,182.54,13.69519082]
[1755524512409,14.20515437,182.59,182.54,27.90034519]
[1755524512718,14.20515437,182.58,182.54,13.69519082]
[1755524513433,14.20515437,182.56,182.53,5.47855147]
[1755524513727,14.20515437,182.55,182.53,5.47855147]
[1755524514027,40.20515437,182.54,182.49,5.47975231]
[1755524514195,14.20515437,182.52,182.48,5.4800526]
[1755524514508,66.76,182.54,182.48,5.4800526]
[1755524514718,14.20515437,182.52,182.48,5.4800526]
[1755524515019,2.8551613,182.59,182.44,13.70285994]
[1755524515020,14.20515437,182.49,182.45,5.48095368]
[1755524515205,26.0,182.46,182.42,5.48185505]
[1755524515413,14.20515437,182.45,182.42,5.48185505]
[1755524515583,26.0,182.44,182.39,5.48275673]
[1755524515784,14.20515437,182.4,182.39,5.48275673]
[1755524515983,40.76,182.4,182.36,5.48365869]
[1755524516317,54.96515437,182.4,182.36,5.48365869]
[1755524516519,54.96515437,182.4,182.36,4.98365869]
[1755524516718,40.76,182.4,182.36,4.98365869]
[1755524517091,14.20515437,182.39,182.36,4.98365869]
[1755524517292,14.20515437,182.38,182.36,4.98365869]
[1755524517594,40.76,182.4,182.33,19.19596336]
[1755524517795,54.96515437,182.4,182.34,14.20515437]
[1755524518006,26.0,182.39,182.34,15.10621557]
[1755524518209,26.0,182.39,182.31,5.48516263]
[1755524518522,26.0,182.35,182.31,5.48516263]
[1755524518895,26.0,182.35,182.32,14.20515437]
[1755524519102,26.0,182.36,182.34,14.20515437]
[1755524519299,26.0,182.36,182.32,15.10621557]
[1755524519507,26.0,182.36,182.34,14.20515437]
[1755524519889,26.0,182.36,182.32,15.10621557]
[1755524520121,54.96515437,182.4,182.34,19.68941454]
[1755524520308,14.20515437,182.42,182.34,5.48426017]
[1755524520517,14.20515437,182.38,182.34,5.48426017]
[1755524520712,14.20515437,182.36,182.34,5.48426017]
[1755524521014,14.20515437,182.36,182.28,55.88621557]
[1755524521015,14.20515437,182.35,182.29,5.48576444]
[1755524521216,40.78,182.38,182.29,5.48576444]
[1755524521522,26.0,182.35,182.29,5.48576444]
[1755524521696,26.0,182.35,182.31,14.20515437]
[1755524521889,40.78,182.38,182.3,15.10621557]
[1755524522110,66.78,182.38,182.3,15.10621557]
[1755524522336,66.78,182.38,182.24,57.310312]
[1755524522337,26.0,182.35,182.31,5.48516263]
[1755524522501,26.0,182.35,182.24,16.490312]
[1755524522502,26.0,182.31,182.29,5.48576444]
[1755524522691,40.20515437,182.31,182.27,5.48609652]
[1755524522898,26.0,182.31,182.27,5.48609652]
[1755524523118,26.0,182.31,182.3,14.20515437]
[1755524523309,26.0,182.31,182.27,5.48609652]
[1755524523622,26.0,182.31,182.22,5.4878718]
[1755524523623,26.0,182.27,182.22,5.4878718]
[1755524523799,40.96,182.26,182.25,14.20515437]
[1755524524118,40.96,182.26,182.22,5.4878718]
[1755524524296,26.0,182.23,182.16,16.497567]
[1755524524499,40.96,182.27,182.22,14.20515437]
[1755524524692,66.96,182.27,182.26,14.20515437]
[1755524524893,66.96,182.27,182.17,15.10621557]
[1755524525120,26.0,182.24,182.22,14.20515437]
[1755524525342,26.0,182.2,182.15,5.48998078]
[1755524525528,26.0,182.16,182.13,5.49058364]
[1755524526020,26.0,182.18,182.13,5.49058364]
[1755524526224,41.14,182.17,182.08,5.49209138]
[1755524526601,41.14,182.17,182.08,19.22231985]
[1755524526923,41.14,182.17,182.16,14.20515437]
[1755524527104,26.0,182.22,182.16,14.20515437]
[1755524527306,26.0,182.18,182.09,15.10621557]
[1755524527625,41.12,182.17,182.16,14.20515437]
[1755524528002,41.12,182.17,182.09,15.10621557]
[1755524528196,26.0,182.14,182.1,5.49148819]
[1755524528400,26.0,182.11,182.1,5.49148819]
[1755524528599,41.22,182.14,182.03,15.10621557]
[1755524528800,67.22,182.14,182.03,15.10621557]
[1755524529016,26.0,182.21,182.11,0.03]
[1755524529222,16.510277,182.24,182.11,0.03]
[1755524529523,26.0,182.2,182.11,0.03]
[1755524529702,67.26,182.19,182.11,0.03]
[1755524530021,67.26,182.19,182.14,14.20515437]
[1755524530222,26.0,182.2,182.15,5.48993599]
[1755524530418,26.0,182.16,182.12,5.49088513]
[1755524530637,26.0,182.16,182.12,19.21809795]
[1755524530833,16.510277,182.24,182.15,14.20515437]
[1755524531033,41.38,182.23,182.18,14.20515437]
[1755524531219,41.38,182.23,182.13,15.10621557]
[1755524531533,13.728376,182.25,182.22,14.20515437]
[1755524531712,10.0,182.37,182.24,14.20515437]
[1755524531898,16.503012,182.31,182.28,14.20515437]
[1755524532102,16.503012,182.31,182.16,41.10621557]
[1755524532398,26.0,182.29,182.2,15.10621557]
[1755524532612,14.20515437,182.29,182.17,15.10621557]
[1755524532831,26.0,182.25,182.16,19.2138779]
[1755524533119,15.10621557,182.3,182.2,14.20515437]
[1755524533120,26.0,182.21,182.2,14.20515437]
[1755524533711,17.8146173,182.31,182.2,14.20515437]
[1755524533908,41.74,182.3,182.26,14.20515437]
[1755524534112,26.0,182.27,182.26,14.20515437]
[1755524534510,67.74,182.27,182.19,15.10621557]
[1755524534712,26.0,182.28,182.26,14.20515437]
[1755524535025,26.0,182.24,182.19,15.10621557]
[1755524535699,41.74,182.27,182.19,15.10621557]
[1755524536103,41.7,182.29,182.26,14.20515437]
[1755524536302,41.7,182.29,182.2,19.20965971]
[1755524536506,41.7,182.29,182.26,14.20515437]
[1755524536729,41.7,182.29,182.21,15.10621557]
[1755524536730,26.0,182.27,182.21,15.10621557]
[1755524536929,26.0,182.26,182.2,19.20965971]
[1755524537308,26.0,182.26,182.15,5.48998078]
[1755524537814,26.0,182.26,182.15,19.21493274]
[1755524538030,26.0,182.26,182.16,15.10621557]
[1755524538323,17.96086369,182.31,182.25,14.20515437]
[1755524538324,26.0,182.27,182.25,14.20515437]
[1755524538633,41.7,182.26,182.18,15.10621557]
[1755524538813,2.85464812,182.31,182.18,41.10621557]
[1755524539014,41.72,182.32,182.22,15.10621557]
[1755524539399,8.90837349,182.35,182.25,41.10621557]
[1755524539604,41.8,182.37,182.34,14.20515437]
[1755524539934,0.06,182.38,182.35,14.20515437]
[1755524540134,0.06,182.38,182.26,15.10621557]
[1755524540425,56.10515437,182.36,182.3,14.20515437]
[1755524540611,26.0,182.33,182.3,14.20515437]
[1755524541235,26.0,182.33,182.31,14.20515437]
[1755524541808,26.0,182.33,182.32,14.20515437]
[1755524542029,41.82,182.35,182.32,14.20515437]
[1755524542230,0.06,182.36,182.34,14.20515437]
[1755524542423,0.06,182.36,182.35,14.20515437]
[1755524543232,0.06,182.36,182.29,19.20017554]
[1755524543538,26.0,182.35,182.33,14.20515437]
[1755524543915,26.0,182.35,182.31,14.20515437]
[1755524543916,26.0,182.34,182.31,14.20515437]
[1755524544312,26.0,182.34,182.31,5.48511297]
[1755524544513,14.26515437,182.36,182.31,19.69026734]
[1755524544815,41.84,182.35,182.31,19.69026734]
[1755524545027,26.0,182.32,182.29,5.48576444]
[1755524545342,26.0,182.32,182.28,5.48604971]
[1755524545540,40.20515437,182.32,182.28,5.48604971]
[1755524545833,26.0,182.3,182.29,14.20515437]
[1755524546047,26.0,182.33,182.29,14.20515437]
[1755524546554,26.0,182.33,182.28,19.20121319]
[1755524546555,14.20515437,182.32,182.25,13.71712611]
[1755524546842,56.06515437,182.31,182.26,19.69182176]
[1755524547138,26.0,182.3,182.24,14.20515437]
[1755524547352,26.0,182.27,182.24,14.20515437]
[1755524547720,26.0,182.28,182.25,14.20515437]
[1755524548225,40.20515437,182.28,182.23,5.48757065]
[1755524548415,14.20515437,182.27,182.22,19.69295428]
[1755524548621,41.86,182.26,182.22,14.20515437]
[1755524548822,56.06515437,182.26,182.2,5.4884742]
[1755524549160,26.0,182.18,182.17,19.69453205]
[1755524549454,26.0,182.18,182.16,5.48961086]
[1755524549816,26.0,182.18,182.17,14.20515437]
[1755524550329,26.0,182.18,182.17,19.69453242]
[1755524550531,26.0,182.17,182.14,5.4902822]
[1755524550828,26.0,182.17,182.14,19.69543657]
[1755524551036,26.0,182.17,182.12,5.49088513]
[1755524551355,26.0,182.17,182.13,14.20515437]
[1755524551521,40.20515437,182.17,182.11,14.23515437]
[1755524551726,26.0,182.13,182.11,0.03]
[1755524552057,56.08515437,182.12,182.11,0.03]
[1755524553349,26.0,182.09,182.06,0.03]
[1755524553552,5.59280513,182.13,182.06,0.03]
[1755524553553,14.20515437,182.07,182.06,0.03]
[1755524553846,26.0,182.1,182.06,0.03]
[1755524554067,14.20515437,182.07,182.06,0.03]
[1755524554236,42.16,182.07,182.06,0.03]
[1755524554553,42.16,182.07,181.93,13.74085004]
[1755524554554,26.0,182.01,181.93,21.15596126]
[1755524554757,21.15596126,181.99,181.92,5.49692172]
[1755524555071,21.15596126,181.93,181.91,0.1]
[1755524555271,63.55596126,181.92,181.91,0.1]
[1755524555429,26.0,181.89,181.84,10.0]
[1755524555633,43.06,181.88,181.84,10.0]
[1755524556359,43.06,181.88,181.84,15.49931435]
[1755524556854,26.0,181.91,181.84,15.49931435]
[1755524557064,26.0,181.9,181.84,15.49931435]
[1755524557451,26.0,181.89,181.84,15.49931435]
[1755524557678,45.0,181.93,181.88,21.15596126]
[1755524557851,45.0,181.93,181.84,29.24766454]
[1755524558056,21.15596126,181.98,181.92,21.15596126]
[1755524558279,45.2,181.98,181.85,15.10621557]
[1755524558475,45.2,181.98,181.87,15.10621557]
[1755524558658,16.530291,182.01,181.87,15.10621557]
[1755524558857,45.26,182.0,181.86,19.24557351]
[1755524559091,45.26,182.0,181.84,10.0]
[1755524559092,21.15596126,181.88,181.84,15.49908026]
[1755524559269,21.15596126,181.85,181.84,10.0]
[1755524559468,45.3,181.85,181.84,10.0]
[1755524559847,66.45596126,181.85,181.84,10.0]
[1755524560049,45.3,181.85,181.84,10.0]
[1755524560246,45.52,181.85,181.84,10.03]
[1755524560484,45.52,181.86,181.84,10.03]
[1755524560897,45.52,181.86,181.84,15.52932965]
[1755524561091,66.67596126,181.86,181.84,10.03]
[1755524561295,45.52,181.86,181.84,10.03]
[1755524561462,45.52,181.86,181.84,15.52917652]
[1755524561789,45.52,181.86,181.84,10.03]
[1755524561987,21.15596126,181.85,181.84,10.03]
[1755524562284,21.15596126,181.85,181.84,8.76]
[1755524562489,26.0,181.83,181.72,7.13105443]
[1755524562651,26.0,181.79,181.72,7.13105443]
[1755524562853,21.15596126,181.75,181.72,7.13105443]
[1755524563085,45.58,181.77,181.72,7.13105443]
[1755524563754,26.0,181.78,181.72,28.28701569]
[1755524563951,26.0,181.75,181.72,1.6280867]
[1755524564256,92.79596126,181.75,181.72,1.6280867]
[1755524564474,21.15596126,181.74,181.72,1.6280867]
[1755524564663,21.15596126,181.73,181.72,1.6280867]
[1755524565254,67.01596126,181.73,181.72,1.6280867]
[1755524565660,82.12217683,181.73,181.72,1.6280867]
[1755524566180,71.8,181.73,181.72,1.6280867]
[1755524566351,114.11192252,181.73,181.72,1.6280867]
[1755524566549,47.15596126,181.73,181.72,1.6280867]
[1755524566758,92.97596126,181.73,181.72,1.6280867]
[1755524567191,71.82,181.73,181.72,1.6280867]
[1755524567689,92.97596126,181.73,181.72,1.6280867]
[1755524568078,92.97596126,181.73,181.72,1.1280867]
[1755524568079,26.0,181.73,181.72,1.1280867]
[1755524568255,93.05596126,181.73,181.72,1.1280867]
[1755524568462,2.206957,181.77,181.72,1.8480867]
[1755524568807,2.206957,181.77,181.73,0.72]
[1755524568985,45.88,181.8,181.76,21.15596126]
[1755524569291,45.88,181.83,181.79,21.15596126]
[1755524569465,60.79596126,181.91,181.82,21.15596126]
[1755524569673,60.79596126,181.91,181.86,21.15596126]
[1755524569911,45.88,181.9,181.88,21.15596126]
[1755524570073,45.86,181.91,181.89,0.72]
[1755524570279,45.86,181.91,181.9,0.72]
[1755524570456,45.86,181.91,181.85,5.49900472]
[1755524570655,45.86,181.91,181.86,21.87596126]
[1755524570903,21.15596126,181.92,181.87,21.87596126]
[1755524571188,21.15596126,181.92,181.85,5.49900472]
[1755524571189,21.15596126,181.89,181.84,0.72]
[1755524571357,45.86,181.88,181.85,0.72]
[1755524571559,45.86,181.88,181.87,21.15596126]
[1755524571895,67.01596126,181.91,181.87,0.72]
[1755524572200,26.0,181.85,181.8,6.22055005]
[1755524572364,71.88,181.85,181.81,21.15596126]
[1755524572688,71.88,181.85,181.82,27.37590626]
[1755524572899,71.88,181.85,181.83,0.72]
[1755524573106,21.15596126,181.84,181.79,0.72]
[1755524573388,21.15596126,181.8,181.76,0.72]
[1755524573583,21.15596126,181.78,181.73,6.2225435]
[1755524573762,21.15596126,181.76,181.73,0.72]
[1755524573961,26.0,181.73,181.72,1.1280867]
[1755524574455,26.0,181.73,181.72,1.8480867]
[1755524574670,26.0,181.73,181.72,7.3510583]
[1755524574871,26.0,181.73,181.72,1.8480867]
[1755524574872,47.15596126,181.73,181.72,1.8480867]
[1755524575263,47.15596126,181.73,181.72,7.3510583]
[1755524575465,26.0,181.73,181.72,1.8480867]
[1755524576071,26.0,181.73,181.72,7.3510583]
[1755524576272,45.88,181.75,181.72,7.3510583]
[1755524576477,16.549441,181.83,181.73,21.87596126]
[1755524576681,21.15596126,181.8,181.75,5.50206327]
[1755524576887,21.15596126,181.77,181.75,5.50206327]
[1755524577063,21.15596126,181.76,181.75,5.50206327]
[1755524577483,45.84,181.77,181.75,6.22206327]
[1755524577887,21.15596126,181.76,181.72,1.1280867]
[1755524578059,21.15596126,181.73,181.72,6.63098688]
[1755524578259,45.88,181.74,181.72,7.35098688]
[1755524578493,45.88,181.74,181.72,1.8480867]
[1755524578784,45.88,181.74,181.73,0.72]
[1755524578981,67.03596126,181.74,181.73,0.72]
[1755524579374,45.88,181.74,181.73,0.72]
[1755524579577,67.03596126,181.74,181.72,6.6310583]
[1755524579892,45.88,181.74,181.72,6.6310583]